[Event "DVM U14 2021"]
[Site "Willingen"]
[Date "2022.08.14"]
[Round "4"]
[White "Wagner, Anton"]
[Black "Mehner, Lorenz"]
[Result "0-1"]
[ECO "A31"]
[WhiteElo "1479"]
[BlackElo "1602"]
[Annotator "NA RC"]
[PlyCount "74"]
[EventDate "2022.08.12"]
[EventType "team-tourn"]
[EventRounds "7"]
[EventCountry "GER"]
[SourceTitle "playchess.com"]
[Source "ChessBase"]
[SourceQuality "1"]
[TimeControl "40/5400+30:1800+30"]

1. d4 {[%emt 0:00:01]} Nf6 {[%emt 0:00:08]} 2. c4 {[%emt 0:00:27]} c5 {[%emt 0:02:15]} 3. Nf3 {[%emt 0:03:18]} g6 {[%emt 0:01:02]} 4. Nc3 {[%emt 0:00:11]} Bg7 {[%emt 0:00:51]} 5. Bf4 {[%emt 0:02:50]} cxd4 {[%emt 0:01:26]} 6. Nxd4 {[%emt 0:00:26]} d5 {[%emt 0:03:04]} 7. Ndb5 {[%emt 0:10:37]} Na6 {[%emt 0:03:00]} 8. Nxd5 {[%emt 0:11:50]} Nxd5 {[%emt 0:04:03]} 9. Qxd5 {[%emt 0:01:23]} Qxd5 {[%emt 0:01:42]} 10. cxd5 {[%emt 0:00:05]} O-O {[%emt 0:02:28]} 11. e4 {[%emt 0:08:14]} Bxb2 {[%emt 0:01:27]} 12. Rb1 {[%emt 0:01:55]} Bg7 {[%emt 0:00:27]} 13. Bd3 {[%emt 0:03:04]} Bd7 {[%emt 0:00:54]} 14. O-O {[%emt 0:02:30]} f5 {[%emt 0:05:53]} 15. e5 {[%emt 0:05:01]} h6 {[%emt 0:06:53]} 16. h4 {[%emt 0:03:03]} Nc5 {[%emt 0:05:10]} 17. Bc4 {[%emt 0:06:07]} Kh7 {[%emt 0:02:11]} 18. Rfd1 {[%emt 0:07:19]} a6 {[%emt 0:06:35]} 19. Nc7 {[%emt 0:04:19]} Rac8 {[%emt 0:00:39]} 20. e6 {[%emt 0:00:33]} Ba4 {[%emt 0:01:29]} 21. Bb3 {[%emt 0:01:54]} Bxb3 {[%emt 0:03:33]} 22. axb3 {[%emt 0:00:08]} Ne4 {[%emt 0:06:30]} 23. Rbc1 {[%emt 0:07:48]} Nc3 {[%emt 0:02:34]} 24. Rd2 {[%emt 0:01:49]} g5 {[%emt 0:01:17]} 25. hxg5 {[%emt 0:01:12]} hxg5 {[%emt 0:00:36]} 26. Bh2 {[%emt 0:00:13]} f4 {[%emt 0:01:15]} 27. d6 {[%emt 0:01:02]} exd6 {[%emt 0:01:58]} 28. e7 {[%emt 0:03:09]} Rg8 {[%emt 0:02:53]} 29. e8=Q {[%emt 0:05:37]} Rf8 {[%emt 0:01:17]} 30. Qxc8 Rxc8 31. Ne8 {[%emt 0:00:38]} Ne2+ {[%emt 0:01:40]} 32. Kf1 {[%emt 0:00:47]} Nxc1 {[%emt 0:00:40]} 33. Nxg7 {[%emt 0:00:17]} Kxg7 {[%emt 0:00:33]} 34. Rxd6 {[%emt 0:00:21]} Rc7 {[%emt 0:02:27]} 35. Rb6 {[%emt 0:00:12]} Re7 {[%emt 0:01:04]} 36. g3 {[%emt 0:01:07]} f3 {[%emt 0:00:50]} 37. g4 {[%emt 0:01:39]} Nd3 {[%emt 0:00:45]} 0-1

[Event "DVM U14 2021"]
[Site "Willingen"]
[Date "2022.08.14"]
[Round "4"]
[White "Le, Dinh An"]
[Black "Fettig, Michel"]
[Result "1/2-1/2"]
[ECO "D02"]
[WhiteElo "1470"]
[BlackElo "1370"]
[Annotator "NA RC"]
[PlyCount "140"]
[EventDate "2022.08.12"]
[EventType "team-tourn"]
[EventRounds "7"]
[EventCountry "GER"]
[SourceTitle "playchess.com"]
[Source "ChessBase"]
[SourceQuality "1"]
[TimeControl "40/5400+30:1800+30"]

1. d4 {[%emt 0:00:28]} d5 {[%emt 0:00:05]} 2. Nf3 {[%emt 0:00:54]} Nf6 {[%emt 0:00:19]} 3. g3 {[%emt 0:03:00]} Bf5 {[%emt 0:00:08]} 4. Bg2 {[%emt 0:02:09]} e6 {[%emt 0:00:19]} 5. O-O {[%emt 0:00:37]} c5 {[%emt 0:00:51]} 6. Nh4 {[%emt 0:00:41]} Bg6 {[%emt 0:00:17]} 7. Nxg6 {[%emt 0:00:16]} hxg6 {[%emt 0:00:19]} 8. c4 {[%emt 0:02:15]} cxd4 {[%emt 0:01:54]} 9. Qxd4 {[%emt 0:02:28]} Nc6 {[%emt 0:01:13]} 10. Qd1 {[%emt 0:00:43]} Bc5 {[%emt 0:00:37]} 11. Nc3 {[%emt 0:04:09]} Ne7 {[%emt 0:01:27]} 12. Qb3 {[%emt 0:03:42]} b6 {[%emt 0:00:45]} 13. Rd1 {[%emt 0:12:55]} Kf8 {[%emt 0:00:49]} 14. cxd5 {[%emt 0:00:13]} exd5 {[%emt 0:00:16]} 15. e4 {[%emt 0:05:47]} Ng4 {[%emt 0:04:23]} 16. exd5 {[%emt 0:01:35]} Nxf2 {[%emt 0:14:44]} 17. Na4 {[%emt 0:00:28]} Nxd1+ {[%emt 0:00:06]} 18. Nxc5 {[%emt 0:00:27]} bxc5 {[%emt 0:00:10]} 19. Qxd1 {[%emt 0:02:40]} Nf5 {[%emt 0:04:48]} 20. d6 {[%emt 0:00:27]} Rc8 {[%emt 0:00:48]} 21. Bf4 {[%emt 0:02:33]} g5 {[%emt 0:00:44]} 22. d7 {[%emt 0:01:41]} gxf4 {[%emt 0:00:08]} 23. dxc8=R {[%emt 0:00:45]} Qxc8 {[%emt 0:00:42]} 24. gxf4 {[%emt 0:04:11]} g6 {[%emt 0:02:28]} 25. Qd3 {[%emt 0:01:57]} Qe6 {[%emt 0:09:23]} 26. b3 {[%emt 0:02:21]} Nd4 {[%emt 0:06:22]} 27. Qd2 {[%emt 0:00:42]} Qg4 {[%emt 0:02:29]} 28. Kh1 {[%emt 0:03:25]} Qh4 {[%emt 0:02:39]} 29. Be4 {[%emt 0:08:21]} Ne6 {[%emt 0:03:03]} 30. Rf1 {[%emt 0:01:09]} Nd4 {[%emt 0:08:45]} 31. Qf2 {[%emt 0:00:37]} Ne6 {[%emt 0:01:40]} 32. Bd5 {[%emt 0:01:45]} Qxf2 {[%emt 0:00:10]} 33. Rxf2 {[%emt 0:00:14]} Rh5 {[%emt 0:01:12]} 34. Bxe6 {[%emt 0:00:11]} fxe6 {[%emt 0:00:19]} 35. Rc2 {[%emt 0:00:12]} Ke7 {[%emt 0:00:56]} 36. Kg2 {[%emt 0:00:23]} Rf5 {[%emt 0:00:28]} 37. Kg3 {[%emt 0:00:38]} Kd6 {[%emt 0:00:44]} 38. Kg4 {[%emt 0:00:44]} Kd5 {[%emt 0:00:09]} 39. Rc4 {[%emt 0:05:43]} e5 {[%emt 0:01:10]} 40. fxe5 {[%emt 0:00:39]} Rxe5 {[%emt 0:00:27]} 41. Ra4 {[%emt 0:30:22]} Re2 {[%emt 0:31:44]} 42. h4 {[%emt 0:05:44]} Ke5 {[%emt 0:00:06]} 43. Rxa7 {[%emt 0:04:18]} Kf6 {[%emt 0:04:30]} 44. Ra5 {[%emt 0:01:49]} Rg2+ {[%emt 0:00:56]} 45. Kf3 {[%emt 0:00:39]} Rc2 {[%emt 0:01:36]} 46. Ke3 {[%emt 0:00:39]} c4 {[%emt 0:07:24]} 47. Rc5 {[%emt 0:01:07]} Rxa2 {[%emt 0:00:06]} 48. Rxc4 {[%emt 0:03:36]} Ra3 {[%emt 0:00:51]} 49. Rb4 {[%emt 0:00:27]} Ke5 {[%emt 0:00:23]} 50. Kf3 {[%emt 0:01:20]} Kf5 {[%emt 0:00:26]} 51. Rb5+ {[%emt 0:00:35]} Kf6 {[%emt 0:00:45]} 52. Kf4 {[%emt 0:01:52]} Ra6 {[%emt 0:00:32]} 53. b4 {[%emt 0:02:54]} Rd6 {[%emt 0:01:20]} 54. Ke4 {[%emt 0:02:07]} Rd1 {[%emt 0:02:41]} 55. Rc5 {[%emt 0:00:30]} Rb1 {[%emt 0:01:37]} 56. Rc4 {[%emt 0:00:35]} Ke6 {[%emt 0:00:26]} 57. Kd3 {[%emt 0:01:09]} Kd5 {[%emt 0:00:28]} 58. Rg4 {[%emt 0:01:44]} Rb3+ {[%emt 0:00:09]} 59. Kc2 {[%emt 0:00:14]} Rh3 {[%emt 0:02:49]} 60. Rxg6 {[%emt 0:00:10]} Rxh4 {[%emt 0:00:20]} 61. Kb3 {[%emt 0:00:57]} Rh3+ {[%emt 0:00:12]} 62. Ka4 {[%emt 0:00:46]} Rh8 {[%emt 0:00:56]} 63. Ra6 {[%emt 0:01:37]} Rb8 {[%emt 0:02:46]} 64. Ra7 {[%emt 0:01:35]} Kc6 {[%emt 0:03:06]} 65. Ra6+ {[%emt 0:01:36]} Rb6 {[%emt 0:00:43]} 66. Rxb6+ {[%emt 0:00:02]} Kxb6 {[%emt 0:00:18]} 67. b5 {[%emt 0:00:02]} Kb7 {[%emt 0:00:06]} 68. Kb4 {[%emt 0:00:04]} Kb6 {[%emt 0:00:32]} 69. Ka4 {[%emt 0:00:19]} Kb7 {[%emt 0:00:19]} 70. Ka5 {[%emt 0:00:06]} Ka7 {[%emt 0:00:36]} 1/2-1/2

[Event "DVM U14 2021"]
[Site "Willingen"]
[Date "2022.08.14"]
[Round "4"]
[White "Schaudienst, Arvid"]
[Black "Walter, Romeo"]
[Result "0-1"]
[ECO "C01"]
[WhiteElo "1431"]
[BlackElo "1197"]
[Annotator "NA RC"]
[PlyCount "46"]
[EventDate "2022.08.12"]
[EventType "team-tourn"]
[EventRounds "7"]
[EventCountry "GER"]
[SourceTitle "playchess.com"]
[Source "ChessBase"]
[SourceQuality "1"]
[TimeControl "40/5400+30:1800+30"]

1. e4 {[%emt 0:00:01]} e6 {[%emt 0:00:00]} 2. d4 {[%emt 0:00:03]} d5 {[%emt 0:00:50]} 3. exd5 {[%emt 0:00:06]} exd5 {[%emt 0:00:10]} 4. Bd3 {[%emt 0:00:27]} Nf6 {[%emt 0:01:20]} 5. Bf4 {[%emt 0:00:30]} c5 {[%emt 0:02:11]} 6. Nf3 {[%emt 0:00:42]} Nc6 {[%emt 0:00:50]} 7. c3 {[%emt 0:00:46]} Bg4 {[%emt 0:04:13]} 8. dxc5 {[%emt 0:00:32]} Bxc5 {[%emt 0:00:43]} 9. O-O {[%emt 0:00:20]} O-O {[%emt 0:00:08]} 10. Nbd2 {[%emt 0:07:40]} Nh5 {[%emt 0:12:47]} 11. Bg5 {[%emt 0:06:49]} f6 {[%emt 0:00:45]} 12. Be3 {[%emt 0:04:36]} Bxe3 {[%emt 0:00:15]} 13. fxe3 {[%emt 0:01:13]} Ne5 {[%emt 0:01:34]} 14. Bc2 {[%emt 0:00:35]} Qb6 {[%emt 0:23:31]} 15. h3 {[%emt 0:03:12]} Qxe3+ {[%emt 0:05:35]} 16. Rf2 {[%emt 0:10:18]} Bxf3 {[%emt 0:00:22]} 17. Nxf3 {[%emt 0:00:57]} Nf4 {[%emt 0:07:42]} 18. Nxe5 {[%emt 0:00:23]} fxe5 {[%emt 0:00:18]} 19. Qe1 {[%emt 0:05:36]} Qg3 {[%emt 0:05:55]} 20. Kh1 {[%emt 0:04:44]} e4 {[%emt 0:03:39]} 21. Bb3 {[%emt 0:03:29]} Rf6 {[%emt 0:04:52]} 22. Qd2 {[%emt 0:06:20]} e3 {[%emt 0:06:40]} 23. Rf3 {[%emt 0:01:04]} Qxf3 0-1

[Event "DVM U14 2021"]
[Site "Willingen"]
[Date "2022.08.14"]
[Round "4"]
[White "Finck, Jonathan"]
[Black "Tran, Anh Duc Kevin"]
[Result "0-1"]
[ECO "E57"]
[WhiteElo "1424"]
[BlackElo "1398"]
[Annotator "NA RC"]
[PlyCount "72"]
[EventDate "2022.08.12"]
[EventType "team-tourn"]
[EventRounds "7"]
[EventCountry "GER"]
[SourceTitle "playchess.com"]
[Source "ChessBase"]
[SourceQuality "1"]
[TimeControl "40/5400+30:1800+30"]

1. e4 {[%emt 0:00:21]} c6 {[%emt 0:03:54]} 2. d4 {[%emt 0:00:32]} d5 {[%emt 0:00:11]} 3. exd5 {[%emt 0:00:07]} cxd5 {[%emt 0:00:20]} 4. Nf3 {[%emt 0:00:08]} Nc6 {[%emt 0:00:38]} 5. c4 {[%emt 0:00:35]} dxc4 {[%emt 0:00:12]} 6. Bxc4 {[%emt 0:00:20]} e6 {[%emt 0:00:41]} 7. Nc3 {[%emt 0:00:15]} Nf6 {[%emt 0:00:28]} 8. Bg5 {[%emt 0:00:27]} h6 {[%emt 0:01:29]} 9. Bh4 {[%emt 0:02:32]} Be7 {[%emt 0:02:14]} 10. O-O {[%emt 0:00:51]} O-O {[%emt 0:05:14]} 11. Re1 {[%emt 0:01:56]} b6 {[%emt 0:01:10]} 12. a3 {[%emt 0:00:18]} Bb7 {[%emt 0:01:38]} 13. Qb3 {[%emt 0:03:20]} Nxd4 {[%emt 0:01:08]} 14. Nxd4 {[%emt 0:00:26]} Qxd4 {[%emt 0:02:11]} 15. Bg3 {[%emt 0:02:23]} Rac8 {[%emt 0:30:10]} 16. Bxe6 {[%emt 0:00:28]} fxe6 {[%emt 0:00:45]} 17. Qxe6+ {[%emt 0:05:16]} Rf7 {[%emt 0:09:14]} 18. Rad1 {[%emt 0:04:59]} Qc4 {[%emt 0:02:43]} 19. Qe5 {[%emt 0:03:06]} Qc6 {[%emt 0:00:46]} 20. f3 {[%emt 0:02:42]} Re8 {[%emt 0:01:19]} 21. Bf2 {[%emt 0:04:49]} Ng4 {[%emt 0:04:26]} 22. Qg3 {[%emt 0:01:19]} Nxf2 {[%emt 0:00:10]} 23. Kxf2 {[%emt 0:00:51]} Bc5+ {[%emt 0:00:07]} 24. Kf1 {[%emt 0:00:48]} Ba6+ {[%emt 0:00:04]} 25. Ne2 {[%emt 0:00:42]} Bxe2+ {[%emt 0:00:01]} 26. Rxe2 {[%emt 0:00:25]} Qb5 {[%emt 0:00:12]} 27. Rde1 {[%emt 0:00:26]} Rfe7 {[%emt 0:03:50]} 28. a4 {[%emt 0:01:58]} Qa6 {[%emt 0:00:47]} 29. b4 {[%emt 0:00:35]} Rxe2 {[%emt 0:00:29]} 30. b5 {[%emt 0:00:09]} Rxe1+ {[%emt 0:00:03]} 31. Qxe1 {[%emt 0:00:08]} Rxe1+ {[%emt 0:00:00]} 32. Kxe1 {[%emt 0:01:11]} Qxa4 {[%emt 0:00:10]} 33. g4 {[%emt 0:00:08]} Qc2 {[%emt 0:00:07]} 34. g5 {[%emt 0:00:29]} Be3 {[%emt 0:00:15]} 35. gxh6 {[%emt 0:00:09]} Qf2+ {[%emt 0:00:01]} 36. Kd1 {[%emt 0:00:40]} Qd2# {[%emt 0:00:30]} 0-1

[Event "DVM U14 2021"]
[Site "Willingen"]
[Date "2022.08.14"]
[Round "4"]
[White "Gloria, Fabian"]
[Black "Dickel, Karl-Joachim"]
[Result "1/2-1/2"]
[ECO "C54"]
[WhiteElo "1420"]
[BlackElo "1178"]
[Annotator "NA RC"]
[PlyCount "92"]
[EventDate "2022.08.12"]
[EventType "team-tourn"]
[EventRounds "7"]
[EventCountry "GER"]
[SourceTitle "playchess.com"]
[Source "ChessBase"]
[SourceQuality "1"]
[TimeControl "40/5400+30:1800+30"]

1. e4 {[%emt 0:00:01]} e5 {[%emt 0:00:01]} 2. Nf3 {[%emt 0:00:08]} Nc6 {[%emt 0:02:53]} 3. Bc4 {[%emt 0:00:25]} Bc5 {[%emt 0:00:38]} 4. O-O {[%emt 0:00:08]} Nf6 {[%emt 0:00:12]} 5. Re1 {[%emt 0:00:04]} d6 {[%emt 0:00:02]} 6. c3 {[%emt 0:00:42]} O-O {[%emt 0:00:17]} 7. d3 {[%emt 0:00:34]} h6 {[%emt 0:00:14]} 8. Be3 {[%emt 0:00:06]} Bxe3 {[%emt 0:00:54]} 9. Rxe3 {[%emt 0:00:03]} Bg4 {[%emt 0:00:55]} 10. Nbd2 {[%emt 0:00:10]} Qd7 {[%emt 0:02:21]} 11. b4 {[%emt 0:01:14]} a6 {[%emt 0:00:43]} 12. a4 {[%emt 0:00:22]} d5 {[%emt 0:01:37]} 13. exd5 {[%emt 0:02:38]} Nxd5 {[%emt 0:00:17]} 14. Bxd5 {[%emt 0:01:06]} Qxd5 {[%emt 0:00:31]} 15. Qc2 {[%emt 0:01:01]} Rfe8 {[%emt 0:01:36]} 16. Rae1 {[%emt 0:03:20]} Rad8 {[%emt 0:00:52]} 17. d4 {[%emt 0:09:15]} f6 {[%emt 0:08:58]} 18. Qe4 {[%emt 0:09:34]} Qd7 {[%emt 0:10:05]} 19. dxe5 {[%emt 0:05:40]} fxe5 {[%emt 0:05:12]} 20. Qc4+ {[%emt 0:04:32]} Be6 {[%emt 0:01:09]} 21. Qe2 {[%emt 0:05:00]} Bg4 {[%emt 0:02:18]} 22. Ne4 {[%emt 0:07:23]} Bxf3 {[%emt 0:03:00]} 23. Qxf3 {[%emt 0:03:48]} b6 {[%emt 0:00:38]} 24. Ng3 {[%emt 0:06:04]} Rf8 {[%emt 0:03:38]} 25. Qh5 {[%emt 0:01:55]} Qf7 {[%emt 0:00:39]} 26. Qxf7+ {[%emt 0:01:31]} Rxf7 {[%emt 0:01:33]} 27. b5 {[%emt 0:00:40]} axb5 {[%emt 0:01:39]} 28. axb5 {[%emt 0:00:31]} Na7 {[%emt 0:01:08]} 29. c4 {[%emt 0:01:58]} Rd4 {[%emt 0:01:04]} 30. Rc3 {[%emt 0:00:30]} c6 {[%emt 0:01:38]} 31. Rxe5 {[%emt 0:01:23]} cxb5 {[%emt 0:01:13]} 32. cxb5 {[%emt 0:00:25]} Rb4 {[%emt 0:00:16]} 33. h3 {[%emt 0:05:19]} Nxb5 {[%emt 0:01:11]} 34. Re8+ {[%emt 0:03:29]} Rf8 {[%emt 0:01:21]} 35. Re6 {[%emt 0:01:09]} Nd4 {[%emt 0:01:55]} 36. Re4 {[%emt 0:02:20]} g6 {[%emt 0:03:02]} 37. Kh2 {[%emt 0:01:46]} Rxf2 {[%emt 0:03:30]} 38. Rd3 {[%emt 0:06:05]} Nc2 {[%emt 0:07:50]} 39. Rxb4 {[%emt 0:04:02]} Nxb4 {[%emt 0:00:16]} 40. Rd6 {[%emt 0:00:06]} Kg7 {[%emt 0:03:01]} 41. Rxb6 {[%emt 0:30:31]} Nd5 {[%emt 0:30:03]} 42. Rb7+ {[%emt 0:01:39]} Rf7 {[%emt 0:01:27]} 43. Rb5 {[%emt 0:00:00]} Nf6 {[%emt 0:01:43]} 44. Rb3 {[%emt 0:00:26]} h5 {[%emt 0:01:16]} 45. Ne2 {[%emt 0:01:21]} g5 {[%emt 0:02:41]} 46. Rb5 {[%emt 0:02:36]} Kh6 {[%emt 0:00:05]} 1/2-1/2

[Event "DVM U14 2021"]
[Site "Willingen"]
[Date "2022.08.14"]
[Round "4"]
[White "Bade, Deniz"]
[Black "Sidletskyi, Ivan"]
[Result "0-1"]
[ECO "C02"]
[WhiteElo "1414"]
[BlackElo "2075"]
[Annotator "NA RC"]
[PlyCount "34"]
[EventDate "2022.08.12"]
[EventType "team-tourn"]
[EventRounds "7"]
[EventCountry "GER"]
[SourceTitle "playchess.com"]
[Source "ChessBase"]
[SourceQuality "1"]
[TimeControl "40/5400+30:1800+30"]

1. e4 {[%emt 0:00:26]} e6 {[%emt 0:00:05]} 2. d4 {[%emt 0:01:09]} d5 {[%emt 0:00:18]} 3. e5 {[%emt 0:00:30]} c5 {[%emt 0:00:03]} 4. c3 {[%emt 0:00:11]} Nc6 {[%emt 0:00:06]} 5. Nf3 {[%emt 0:00:44]} Bd7 {[%emt 0:01:11]} 6. Be2 {[%emt 0:04:26]} Nge7 {[%emt 0:00:47]} 7. O-O {[%emt 0:00:37]} cxd4 {[%emt 0:00:52]} 8. cxd4 {[%emt 0:02:01]} Nf5 {[%emt 0:06:22]} 9. Na3 {[%emt 0:00:53]} Qb6 {[%emt 0:01:42]} 10. Nc2 {[%emt 0:01:19]} Rc8 $11 {[%emt 0:08:08]} 11. Rb1 {[%emt 0:14:49]} h5 {[%emt 0:09:42]} 12. Bg5 {[%emt 0:06:26]} a5 {[%emt 0:06:33]} 13. h4 {[%emt 0:03:15]} a4 {[%emt 0:05:17]} 14. b4 {[%emt 0:01:40]} axb3 {[%emt 0:01:45]} 15. Rxb3 {[%emt 0:01:10]} Qa7 {[%emt 0:11:57]} 16. Qb1 {[%emt 0:04:39]} Na5 {[%emt 0:03:52]} 17. Rb6 {[%emt 0:05:13]} Rxc2 {[%emt 0:02:28]} 0-1

[Event "DVM U14 2021"]
[Site "Willingen"]
[Date "2022.08.14"]
[Round "4"]
[White "Leonard, Etienne Peter"]
[Black "Lippmann, Niklas A."]
[Result "0-1"]
[ECO "E60"]
[WhiteElo "1373"]
[BlackElo "1263"]
[Annotator "NA RC"]
[PlyCount "135"]
[EventDate "2022.08.12"]
[EventType "team-tourn"]
[EventRounds "7"]
[EventCountry "GER"]
[SourceTitle "playchess.com"]
[Source "ChessBase"]
[SourceQuality "1"]
[TimeControl "40/5400+30:1800+30"]

1. d4 {[%emt 0:00:04]} Nf6 {[%emt 0:00:05]} 2. c4 {[%emt 0:00:14]} g6 {[%emt 0:00:04]} 3. g3 {[%emt 0:00:09]} Bg7 {[%emt 0:00:19]} 4. Bg2 {[%emt 0:00:11]} O-O {[%emt 0:00:15]} 5. Nf3 {[%emt 0:00:06]} d6 {[%emt 0:01:43]} 6. O-O {[%emt 0:00:49]} c5 {[%emt 0:01:29]} 7. e3 {[%emt 0:00:54]} b6 {[%emt 0:01:17]} 8. Nc3 {[%emt 0:01:01]} Bb7 {[%emt 0:01:17]} 9. b3 {[%emt 0:01:31]} Nc6 {[%emt 0:03:44]} 10. Bb2 {[%emt 0:01:03]} Qd7 {[%emt 0:05:41]} 11. Qc2 {[%emt 0:02:15]} Nb4 {[%emt 0:02:38]} 12. Qd2 {[%emt 0:01:19]} Rad8 {[%emt 0:00:39]} 13. d5 {[%emt 0:00:36]} b5 {[%emt 0:03:23]} 14. a3 {[%emt 0:01:04]} Na6 {[%emt 0:00:24]} 15. Nxb5 {[%emt 0:01:01]} Bxd5 {[%emt 0:03:05]} 16. Bxf6 {[%emt 0:00:28]} Bxf3 {[%emt 0:02:04]} 17. Bxf3 {[%emt 0:00:44]} Bxf6 {[%emt 0:00:04]} 18. Rad1 {[%emt 0:01:55]} Nb8 {[%emt 0:02:18]} 19. Rfe1 {[%emt 0:01:34]} a6 {[%emt 0:01:10]} 20. Nc3 {[%emt 0:00:24]} Nc6 {[%emt 0:01:29]} 21. Nd5 {[%emt 0:00:57]} Bg7 {[%emt 0:00:50]} 22. Bg2 {[%emt 0:01:11]} Rb8 {[%emt 0:00:57]} 23. Rb1 {[%emt 0:00:57]} e6 {[%emt 0:02:07]} 24. Nf4 {[%emt 0:01:05]} Ne7 {[%emt 0:01:17]} 25. Red1 {[%emt 0:00:24]} Rb6 {[%emt 0:04:12]} 26. a4 {[%emt 0:02:43]} Rd8 {[%emt 0:05:19]} 27. Nd3 {[%emt 0:02:31]} Qc7 {[%emt 0:04:06]} 28. Nf4 {[%emt 0:01:47]} Nf5 {[%emt 0:03:03]} 29. Bh3 {[%emt 0:00:41]} Rb4 {[%emt 0:04:35]} 30. Bxf5 {[%emt 0:00:21]} gxf5 {[%emt 0:00:42]} 31. Kf1 {[%emt 0:02:44]} Qb7 {[%emt 0:01:49]} 32. Kg1 {[%emt 0:00:47]} Rxb3 {[%emt 0:02:55]} 33. Rxb3 {[%emt 0:00:13]} Qxb3 {[%emt 0:00:07]} 34. Qd3 {[%emt 0:01:15]} Qxa4 {[%emt 0:01:02]} 35. Nh5 {[%emt 0:00:10]} Bh8 {[%emt 0:02:43]} 36. e4 {[%emt 0:00:35]} fxe4 {[%emt 0:05:35]} 37. Qd2 {[%emt 0:00:26]} f6 {[%emt 0:04:11]} 38. Rf1 {[%emt 0:01:06]} Qe8 {[%emt 0:01:33]} 39. Nf4 {[%emt 0:00:50]} f5 {[%emt 0:00:58]} 40. Nxe6 {[%emt 0:01:42]} Rd7 {[%emt 0:02:58]} 41. Qg5+ {[%emt 0:30:30]} Qg6 {[%emt 0:31:03]} 42. Qxg6+ {[%emt 0:00:19]} hxg6 {[%emt 0:00:07]} 43. Rd1 {[%emt 0:00:45]} Bd4 {[%emt 0:00:49]} 44. Nxd4 {[%emt 0:00:27]} cxd4 {[%emt 0:00:11]} 45. Rxd4 {[%emt 0:00:11]} Kf7 {[%emt 0:00:20]} 46. Kf1 {[%emt 0:00:21]} Ke6 {[%emt 0:00:19]} 47. Ke2 {[%emt 0:00:11]} Rb7 {[%emt 0:01:24]} 48. Rd2 {[%emt 0:00:18]} Rb4 {[%emt 0:00:24]} 49. Ra2 {[%emt 0:00:16]} Rxc4 {[%emt 0:00:20]} 50. Rxa6 {[%emt 0:00:07]} Ke5 {[%emt 0:00:30]} 51. Ra5+ {[%emt 0:00:22]} d5 {[%emt 0:00:12]} 52. Ra2 {[%emt 0:00:20]} g5 {[%emt 0:00:36]} 53. Rd2 {[%emt 0:00:21]} f4 {[%emt 0:01:05]} 54. gxf4+ {[%emt 0:00:54]} gxf4 {[%emt 0:00:10]} 55. f3 {[%emt 0:00:32]} Rc1 {[%emt 0:01:04]} 56. fxe4 {[%emt 0:00:26]} dxe4 {[%emt 0:00:08]} 57. Rd1 {[%emt 0:00:56]} Rxd1 {[%emt 0:00:08]} 58. Kxd1 {[%emt 0:01:02]} Kd4 {[%emt 0:00:07]} 59. h4 {[%emt 0:00:09]} Ke5 {[%emt 0:01:09]} 60. Kd2 {[%emt 0:00:15]} Kf5 {[%emt 0:00:02]} 61. Kc3 {[%emt 0:00:30]} Kg4 {[%emt 0:00:17]} 62. Kd4 {[%emt 0:00:06]} e3 {[%emt 0:00:08]} 63. Kd3 {[%emt 0:00:13]} Kxh4 {[%emt 0:00:06]} 64. Ke2 {[%emt 0:00:09]} Kg3 {[%emt 0:00:06]} 65. Kf1 {[%emt 0:00:07]} e2+ {[%emt 0:00:18]} 66. Kxe2 {[%emt 0:00:08]} Kg2 {[%emt 0:00:04]} 67. Kd3 {[%emt 0:00:22]} f3 {[%emt 0:00:06]} 68. Kd4 {[%emt 0:01:49]} 0-1

[Event "DVM U14 2021"]
[Site "Willingen"]
[Date "2022.08.14"]
[Round "4"]
[White "Klein, Maxim"]
[Black "Freude, Paul"]
[Result "1-0"]
[ECO "D00"]
[WhiteElo "1323"]
[BlackElo "1477"]
[Annotator "NA RC"]
[PlyCount "69"]
[EventDate "2022.08.12"]
[EventType "team-tourn"]
[EventRounds "7"]
[EventCountry "GER"]
[SourceTitle "playchess.com"]
[Source "ChessBase"]
[SourceQuality "1"]
[TimeControl "40/5400+30:1800+30"]

1. d4 {[%emt 0:00:09]} Nf6 {[%emt 0:00:00]} 2. Nc3 {[%emt 0:00:57]} d5 {[%emt 0:00:00]} 3. Bf4 {[%emt 0:00:18]} e6 {[%emt 0:00:05]} 4. e3 {[%emt 0:00:10]} c5 {[%emt 0:00:14]} 5. Nb5 {[%emt 0:01:35]} Na6 {[%emt 0:00:42]} 6. c3 {[%emt 0:03:01]} Qb6 {[%emt 0:02:29]} 7. a4 {[%emt 0:00:24]} c4 {[%emt 0:01:54]} 8. g4 {[%emt 0:01:38]} h6 {[%emt 0:09:29]} 9. Qf3 {[%emt 0:01:41]} Bd7 {[%emt 0:00:58]} 10. g5 {[%emt 0:01:31]} hxg5 {[%emt 0:00:24]} 11. Bxg5 {[%emt 0:00:58]} Ne4 {[%emt 0:07:46]} 12. Bf4 {[%emt 0:00:31]} Bxb5 {[%emt 0:00:23]} 13. axb5 {[%emt 0:00:16]} Qxb5 {[%emt 0:08:47]} 14. O-O-O {[%emt 0:06:44]} Nxc3 {[%emt 0:01:20]} 15. bxc3 {[%emt 0:00:20]} Ba3+ {[%emt 0:00:14]} 16. Kd2 {[%emt 0:00:19]} Qb2+ {[%emt 0:00:17]} 17. Ke1 {[%emt 0:00:08]} Qxc3+ {[%emt 0:00:40]} 18. Ke2 {[%emt 0:00:52]} Bb4 {[%emt 0:01:54]} 19. Bh3 {[%emt 0:01:58]} Qb2+ {[%emt 0:01:12]} 20. Kf1 {[%emt 0:01:25]} c3 {[%emt 0:02:59]} 21. e4 {[%emt 0:03:11]} c2 {[%emt 0:01:42]} 22. Rc1 {[%emt 0:01:51]} dxe4 {[%emt 0:00:30]} 23. Qxe4 {[%emt 0:00:46]} Ba3 {[%emt 0:00:52]} 24. Rxc2 {[%emt 0:04:52]} Qb1+ {[%emt 0:00:18]} 25. Kg2 {[%emt 0:03:48]} Rd8 {[%emt 0:03:16]} 26. Nf3 {[%emt 0:02:44]} Qb6 {[%emt 0:08:18]} 27. Re2 {[%emt 0:03:52]} Be7 {[%emt 0:04:30]} 28. Be5 {[%emt 0:04:19]} f5 {[%emt 0:05:31]} 29. Qe3 {[%emt 0:02:25]} Rg8 {[%emt 0:02:55]} 30. Ng5 {[%emt 0:14:03]} Bxg5 {[%emt 0:00:10]} 31. Qxg5 {[%emt 0:00:56]} Kf7 {[%emt 0:00:59]} 32. Bxf5 {[%emt 0:04:43]} Qc6+ {[%emt 0:01:18]} 33. Kg3 {[%emt 0:00:31]} Qxh1 {[%emt 0:00:37]} 34. Bg6+ {[%emt 0:00:15]} Kf8 35. Qxd8# {[%emt 2:26:25]} 1-0